fUST/lending_fUST_20250118
["ID","MTS","AMOUNT","RATE_DAILY","PERIOD"]
[349473849,1737201040133,-363.5,0.00022191,3]
[349473850,1737201040142,-500.0,0.00022191,3]
[349473851,1737201040152,-588.2,0.00022191,3]
[349473852,1737201040161,-349.46,0.00022191,3]
[349473853,1737201040174,-208.4,0.00022191,3]
[349473854,1737201040183,-842.47,0.00022191,3]
[349473855,1737201040194,-4147.19,0.00022191,3]
[349473856,1737201040203,-253.36,0.00022191,3]
[349473857,1737201040213,-500.0,0.00022191,3]
[349473858,1737201040222,-500.0,0.00022191,3]
[349473859,1737201040232,-429.18,0.00022191,3]
[349473860,1737201040243,-500.0,0.00022191,3]
[349473861,1737201040253,-217.2522549,0.00022245,3]
[349473862,1737201040262,-273.12,0.00022328,3]
[349473863,1737201040271,-500.0,0.00022328,2]
[349473864,1737201040281,-672.85,0.00022328,3]
[349473865,1737201040290,-1154.07,0.00022328,3]
[349473866,1737201040300,-500.0,0.00022328,3]
[349473867,1737201040309,-693.9,0.00022328,3]
[349473868,1737201040409,-500.0,0.00022328,3]
[349473869,1737201040419,-500.0,0.00022328,3]
[349473870,1737201040428,-500.0,0.00022328,3]
[349473871,1737201040437,-500.0,0.00022328,3]
[349473872,1737201040447,-346.84,0.00022328,3]
[349473873,1737201040456,-500.0,0.00022328,3]
[349473874,1737201040466,-500.0,0.00022328,3]
[349473875,1737201040475,-500.0,0.00022328,3]
[349473876,1737201040485,-3788.39529173,0.00022328,3]
[349473877,1737201040499,-2323.53470827,0.00022328,3]
[349473878,1737201040508,-500.0,0.00022328,3]
[349473879,1737201040517,-500.0,0.00022328,3]
[349473880,1737201040527,-500.0,0.00022328,3]
[349473881,1737201040536,-588.2,0.00022328,3]
[349473882,1737201040545,-842.47,0.00022328,3]
[349473883,1737201040555,-4147.19,0.00022328,3]
[349473884,1737201040564,-437.18,0.00022328,3]
[349473886,1737201040573,-350.92,0.00022328,3]
[349473888,1737201040583,-500.0,0.00022328,3]
[349473889,1737201040594,-217.2522549,0.00022348,3]
[349473890,1737201040603,-217.2522549,0.00022452,3]
[349473891,1737201040613,-587.0,0.00022459,2]
[349473892,1737201040623,-500.0,0.00022465,2]
[349473893,1737201040633,-672.85,0.00022465,3]
[349473894,1737201040641,-1154.07,0.00022465,3]
[349473895,1737201040651,-500.0,0.00022465,3]
[349473896,1737201040660,-693.9,0.00022465,3]
[349473897,1737201040670,-411.02754953,0.00022465,3]
[349473898,1737201040679,-500.0,0.00022465,3]
[349473899,1737201040688,-500.0,0.00022465,3]
[349473901,1737201040697,-500.0,0.00022465,3]
[349473902,1737201040707,-500.0,0.00022465,3]
[349473903,1737201040716,-500.0,0.00022465,3]
[349473904,1737201040725,-500.0,0.00022465,3]
[349473905,1737201040735,-6111.93,0.00022465,3]
[349473906,1737201040744,-500.0,0.00022465,3]
[349473907,1737201040753,-165.54,0.00022465,3]
[349473908,1737201040762,-330.09,0.00022465,3]
[349473909,1737201040772,-588.2,0.00022465,3]
[349473910,1737201040781,-842.47,0.00022465,3]
[349473911,1737201040790,-4147.19,0.00022465,3]
[349473912,1737201040800,-500.0,0.00022465,3]
[349473913,1737201040809,-217.2522549,0.00022555,3]
[349473914,1737201040819,-500.0,0.00022602,2]
[349473915,1737201040828,-672.85,0.00022602,3]
[349473916,1737201040839,-1154.07,0.00022602,3]
[349473917,1737201040849,-500.0,0.00022602,3]
[349473918,1737201040858,-693.9,0.00022602,3]
[349473919,1737201040867,-500.0,0.00022602,3]
[349473920,1737201040876,-264.97,0.00022602,3]
[349473921,1737201040885,-500.0,0.00022602,3]
[349473922,1737201040894,-500.0,0.00022602,3]
[349473923,1737201040903,-500.0,0.00022602,3]
[349473924,1737201040912,-500.0,0.00022602,3]
[349473925,1737201040921,-3281.00604572,0.00022602,3]
[349473926,1737201040933,-2830.92395428,0.00022602,3]
[349473927,1737201040942,-500.0,0.00022602,3]
[349473928,1737201040951,-588.2,0.00022602,3]
[349473929,1737201040960,-842.47,0.00022602,3]
[349473930,1737201040969,-975.58515888,0.00022602,3]
[349474005,1737201043852,-1464.96874759,0.00021698,2]
[349474037,1737201154872,1000.0,0.00025,120]
[349474043,1737201514920,166.001389,0.00013973,2]
[349474109,1737202231997,-381.28709948,0.000189,2]
[349474110,1737202232006,-381.28709948,0.00019754,2]
[349474111,1737202232016,-2979.0,0.00020338,2]
[349474112,1737202232025,-300.0,0.00020479,2]
[349474113,1737202232034,-6654.4290726,0.0002048,2]
[349474114,1737202232043,-311.0335797,0.00020658,2]
[349474115,1737202232052,-2687.42,0.00021,10]
[349474116,1737202232062,-412.049,0.0002147,2]
[349474117,1737202232071,-182.192,0.00021916,2]
[349474118,1737202232080,-513.41883605,0.00021917,3]
[349474119,1737202232089,-598.35242949,0.00021917,3]
[349474120,1737202232098,-500.0,0.00021917,3]
[349474121,1737202232107,-610.10875577,0.00021917,3]
[349474122,1737202232116,-500.0,0.00021917,3]
[349474123,1737202232125,-500.0,0.00021917,3]
[349474124,1737202232134,-557.52407295,0.00021917,3]
[349474129,1737202232149,-500.0,0.00021917,3]
[349474131,1737202232162,-498.85172314,0.00021917,3]
[349474133,1737202232172,-400.58835997,0.00021917,3]
[349474135,1737202232181,-500.0,0.00021917,3]
[349474137,1737202232191,-504.18247364,0.00021917,3]
[349474139,1737202232200,-500.0,0.00021917,3]
[349474141,1737202232209,-500.0,0.00021917,3]
[349474142,1737202232219,-502.0294905,0.00021917,3]
[349474143,1737202232229,-503.83064283,0.00021917,3]
[349474144,1737202232239,-503.02533792,0.00021917,3]
[349474145,1737202232248,-502.48549317,0.00021917,2]
[349474146,1737202232257,-500.0,0.00021917,3]
[349474147,1737202232266,-204.9753616,0.00021917,3]
[349474148,1737202232276,-512.48312536,0.00021917,3]
[349474149,1737202232285,-508.71720057,0.00021917,3]
[349474150,1737202232294,-503.86015627,0.00021917,3]
[349474151,1737202232304,-506.67395498,0.00021917,3]
[349474152,1737202232313,-500.0,0.00021917,3]
[349474153,1737202232322,-500.0,0.00021917,3]
[349474154,1737202232331,-500.0,0.00021917,2]
[349474155,1737202232342,-500.0,0.00021917,3]
[349474156,1737202232352,-500.0,0.00021917,3]
[349474157,1737202232361,-500.0,0.00021917,3]
[349474158,1737202232370,-500.0,0.00021917,3]
[349474159,1737202232380,-504.64,0.00021917,3]
[349474160,1737202232390,-500.0,0.00021917,3]
[349474161,1737202232400,-500.0,0.00021917,3]
[349474162,1737202232409,-145.33156471,0.00021917,3]
[349474163,1737202232427,-354.66843529,0.00021917,3]
[349474164,1737202232436,-146.06575428,0.00021917,3]
[349474174,1737202237890,-288.47150204,0.00021817,2]
[349474175,1737202237900,-353.93424572,0.00021917,3]
[349474176,1737202237909,-500.0,0.00021917,3]
[349474177,1737202237919,-500.0,0.00021917,3]
[349474178,1737202237929,-870.14,0.00021917,3]
[349474179,1737202237937,-274.17700243,0.00021917,3]
[349474180,1737202237946,-500.0,0.00021917,3]
[349474181,1737202237955,-500.0,0.00021917,3]
[349474182,1737202237965,-500.0,0.00021917,3]
[349474183,1737202237975,-500.0,0.00021917,3]
[349474184,1737202237984,-500.0,0.00021917,3]
[349474186,1737202237994,-500.0,0.00021917,3]
[349474188,1737202238003,-219.02351462,0.00021917,3]
[349474190,1737202238013,-500.0,0.00021917,3]
[349474192,1737202238022,-500.0,0.00021917,3]
[349474194,1737202238031,-500.0,0.00021917,3]
[349474196,1737202238041,-435.5124983,0.00021917,3]
[349474198,1737202238050,-500.0,0.00021917,3]
[349474199,1737202238059,-500.0,0.00021917,3]
[349474200,1737202238069,-500.0,0.00021917,3]
[349474201,1737202238197,-4604.78,0.00021917,3]
[349474202,1737202238207,-500.0,0.00021917,3]
[349474203,1737202238219,-502.66600945,0.00021917,3]
[349474204,1737202238228,-500.0,0.00021917,3]
[349474205,1737202238237,-500.0,0.00021917,3]
[349474206,1737202238247,-500.0,0.00021917,3]
[349474207,1737202238256,-500.0,0.00021917,3]
[349474208,1737202238266,-500.0,0.00021917,3]
[349474209,1737202238276,-500.0,0.00021917,3]
[349474210,1737202238285,-500.0,0.00021917,3]
[349474211,1737202238295,-3280.79,0.00021917,3]
[349474212,1737202238304,-673.84,0.00021917,3]
[349474213,1737202238314,-574.45,0.00021917,3]
[349474214,1737202238323,-500.0,0.00021917,3]
[349474215,1737202238332,-500.0,0.00021917,3]
[349474216,1737202238341,-521.45,0.00021917,3]
[349474217,1737202238351,-2979.0,0.00021965,4]
[349474218,1737202238362,-553.83,0.00022054,2]
[349474219,1737202238372,-500.0,0.00022054,3]
[349474220,1737202238381,-352.02,0.00022054,3]
[349474221,1737202238391,-230.97,0.00022054,3]
[349474222,1737202238401,-500.0,0.00022054,3]
[349474223,1737202238411,-404.9,0.00022054,3]
[349474224,1737202238420,-500.0,0.00022054,3]
[349474225,1737202238431,-870.14,0.00022054,3]
[349474226,1737202238441,-194.06,0.00022054,3]
[349474227,1737202238450,-500.0,0.00022054,3]
[349474228,1737202238460,-421.61,0.00022054,3]
[349474229,1737202238470,-500.0,0.00022054,3]
[349474230,1737202238480,-500.0,0.00022054,3]
[349474231,1737202238489,-500.0,0.00022054,3]
[349474232,1737202238499,-4604.78,0.00022054,3]
[349474233,1737202238509,-500.0,0.00022054,3]
[349474234,1737202238521,-198.14,0.00022054,3]
[349474235,1737202238531,-500.0,0.00022054,3]
[349474236,1737202238540,-3280.79,0.00022054,3]
[349474237,1737202238550,-673.84,0.00022054,3]
[349474238,1737202238561,-521.45,0.00022054,3]
[349474239,1737202238571,-166.001389,0.00022174,2]
[349474240,1737202238581,-500.0,0.00022191,3]
[349474241,1737202238591,-500.0,0.00022191,3]
[349474242,1737202238601,-500.0,0.00022191,3]
[349474243,1737202238613,-870.14,0.00022191,3]
[349474244,1737202238622,-500.0,0.00022191,3]
[349474245,1737202238632,-500.0,0.00022191,3]
[349474246,1737202238641,-500.0,0.00022191,3]
[349474247,1737202238650,-500.0,0.00022191,3]
[349474248,1737202238660,-2889.09383844,0.00022191,3]
[349474249,1737202238745,-1715.68616156,0.00022191,3]
[349474250,1737202238755,-500.0,0.00022191,3]
[349474251,1737202238766,-500.0,0.00022191,3]
[349474252,1737202238777,-3280.79,0.00022191,3]
[349474253,1737202238788,-673.84,0.00022191,3]
[349474254,1737202238797,-521.45,0.00022191,3]
[349474255,1737202238807,-420.0,0.00022288,2]
[349474256,1737202238816,-1006.55922007,0.00022328,2]
[349474257,1737202238825,-500.0,0.00022328,3]
[349474258,1737202238835,-500.0,0.00022328,3]
[349474259,1737202238844,-500.0,0.00022328,3]
[349474260,1737202238854,-743.9441191,0.00022328,3]
[349474288,1737202240139,-288.47150202,0.00022104,2]
[349474290,1737202240148,-126.1958809,0.00022328,3]
[349474292,1737202240158,-500.0,0.00022328,3]
[349474294,1737202240167,-500.0,0.00022328,3]
[349474296,1737202240176,-500.0,0.00022328,3]
[349474298,1737202240185,-500.0,0.00022328,3]
[349474300,1737202240194,-3743.20203374,0.00022328,3]
[349474557,1737202242907,-288.47150204,0.00021599,2]
[349474559,1737202242916,-500.0,0.00021917,3]
[349474561,1737202242926,-214.47439226,0.00022328,3]
[349474866,1737202245798,-500.0,0.00021917,3]
[349474868,1737202245808,-500.0,0.00022054,3]
[349474870,1737202245818,-500.0,0.00022191,3]
[349474872,1737202245827,-647.103574,0.00022328,3]
[349474874,1737202245836,-500.0,0.00022328,3]
[349474876,1737202245846,-500.0,0.00022328,3]
[349474878,1737202245856,-284.96249623,0.00022328,3]
[349474880,1737202245867,-2995.82750377,0.00022328,3]
[349474882,1737202245877,-321.97249622,0.00022328,3]
[349476997,1737202643707,166.448969,0.00013973,2]
[349477098,1737203432407,-300.0,0.00018294,2]
[349477099,1737203432417,-300.0,0.00018479,2]
[349477100,1737203432427,-300.0,0.00018666,2]
[349477101,1737203432436,-174.3,0.00018667,2]
[349477109,1737203438166,-20642.90704855,0.00018667,2]
[349477111,1737203438175,-426.6908665,0.000189,2]
[349477113,1737203438185,-1567.45439663,0.00020228,2]
[349477379,1737203440603,-428.5613202,0.00020228,2]
[349477381,1737203440614,-1921.01081936,0.00020228,2]
[349477383,1737203440624,-167.9763135,0.00020297,2]
[349477385,1737203440633,-420.0,0.00020353,2]
[349477387,1737203440643,-1151.0512713,0.00020809,2]
[349477389,1737203440652,-394.471,0.0002147,2]
[349477391,1737203440661,-216.35362655,0.00021817,2]
[349477393,1737203440670,-4298.2228711,0.00021917,5]
[349477395,1737203440680,-232.17864209,0.00021917,5]
[349477397,1737203440689,-155.99,0.00021917,2]
[349477399,1737203440698,-182.19269129,0.00021917,2]
[349477401,1737203440708,-474.68227853,0.00021917,3]
[349477403,1737203440717,-500.0,0.00021917,3]
[349477405,1737203440726,-500.0,0.00021917,3]
[349477407,1737203440735,-500.0,0.00021917,3]
[349477409,1737203440745,-500.0,0.00021917,3]
[349477411,1737203440754,-438.92287716,0.00021917,3]
[349477413,1737203440763,-500.0,0.00021917,3]
[349477415,1737203440773,-500.0,0.00021917,3]
[349477417,1737203440782,-500.0,0.00021917,3]
[349477418,1737203440791,-500.0,0.00021917,3]
[349477420,1737203440800,-500.0,0.00021917,3]
[349477422,1737203440810,-500.0,0.00021917,3]
[349477424,1737203440819,-501.86505248,0.00021917,3]
[349477426,1737203440828,-501.02321942,0.00021917,3]
[349477428,1737203440838,-500.0,0.00021917,3]
[349477431,1737203440851,-649.78818451,0.00021917,3]
[349477433,1737203440860,-500.0,0.00021917,3]
[349477435,1737203440870,-254.00863574,0.00021917,3]
[349477436,1737203440882,-500.0,0.00021917,3]
[349477438,1737203440892,-598.51860926,0.00021917,3]
[349477440,1737203440902,-500.0,0.00021917,3]
[349477442,1737203440911,-500.0,0.00021917,3]
[349477445,1737203440922,-500.0,0.00021917,3]
[349477447,1737203440931,-500.0,0.00021917,3]
[349477449,1737203440941,-500.0,0.00021917,3]
[349477450,1737203440950,-500.0,0.00021917,3]
[349477453,1737203440962,-529.91499423,0.00021917,3]
[349477455,1737203440973,-500.0,0.00021917,3]
[349477456,1737203440982,-500.0,0.00021917,3]
[349477457,1737203440992,-394.20190693,0.00021917,3]
[349477458,1737203441002,-500.0,0.00021917,3]
[349477459,1737203441011,-500.0,0.00021917,3]
[349477460,1737203441021,-500.0,0.00021917,3]
[349477461,1737203441031,-516.50708938,0.00021917,3]
[349477462,1737203441040,-500.0,0.00021917,3]
[349477463,1737203441050,-500.0,0.00021917,3]
[349477464,1737203441059,-500.0,0.00021917,3]
[349477465,1737203441069,-500.0,0.00021917,3]
[349477466,1737203441078,-511.88113369,0.00021917,3]
[349477467,1737203441088,-515.40166202,0.00021917,3]
[349477468,1737203441098,-500.0,0.00021917,3]
[349477469,1737203441108,-500.0,0.00021917,3]
[349477470,1737203441117,-500.0,0.00021917,3]
[349477471,1737203441127,-500.0,0.00021917,3]
[349477472,1737203441136,-500.0,0.00021917,3]
[349477473,1737203441146,-518.46424143,0.00021917,3]
[349477474,1737203441155,-500.0,0.00021917,3]
[349477476,1737203441164,-158.4815261,0.00021917,3]
[349477478,1737203441173,-500.0,0.00021917,3]
[349477480,1737203441183,-500.0,0.00021917,3]
[349477482,1737203441192,-500.0,0.00021917,3]
[349477484,1737203441201,-500.0,0.00021917,3]
[349477486,1737203441210,-500.0,0.00021917,3]
[349477488,1737203441220,-500.0,0.00021917,3]
[349477490,1737203441229,-560.32888132,0.00021917,3]
[349477492,1737203441238,-500.0,0.00021917,3]
[349477494,1737203441248,-500.0,0.00021917,3]
[349477496,1737203441258,-500.0,0.00021917,3]
[349477498,1737203441267,-500.0,0.00021917,3]
[349477500,1737203441276,-500.0,0.00021917,3]
[349477502,1737203441286,-500.0,0.00021917,3]
[349477504,1737203441295,-528.48245023,0.00021917,3]
[349477506,1737203441305,-500.0,0.00021917,3]
[349477508,1737203441314,-500.0,0.00021917,3]
[349477510,1737203441323,-500.0,0.00021917,3]
[349477512,1737203441333,-512.68794293,0.00021917,3]
[349477514,1737203441342,-500.0,0.00021917,3]
[349477516,1737203441352,-514.15261162,0.00021917,3]
[349477518,1737203441361,-500.0,0.00021917,3]
[349477520,1737203441370,-282.8204235,0.00021917,3]
[349477522,1737203441379,-500.0,0.00021917,3]
[349477524,1737203441389,-519.48586166,0.00021917,3]
[349477526,1737203441398,-500.0,0.00021917,3]
[349477528,1737203441407,-192.78116122,0.00021917,3]
[349477530,1737203441416,-500.0,0.00021917,3]
[349477532,1737203441426,-500.0,0.00021917,3]
[349477534,1737203441435,-500.0,0.00021917,3]
[349477536,1737203441444,-500.0,0.00021917,3]
[349477538,1737203441453,-587.20430714,0.00021917,3]
[349477539,1737203441462,-500.0,0.00021917,3]
[349477541,1737203441471,-500.0,0.00021917,3]
[349477543,1737203441480,-500.0,0.00021917,3]
[349477545,1737203441490,-500.0,0.00021917,3]
[349477547,1737203441499,-500.0,0.00021917,3]
[349477549,1737203441509,-513.56590105,0.00021917,3]
[349477552,1737203441519,-516.2492969,0.00021917,3]
[349477554,1737203441528,-500.0,0.00021917,3]
[349477555,1737203441538,-500.0,0.00021917,3]
[349477557,1737203441547,-500.0,0.00021917,3]
[349477559,1737203441558,-500.0,0.00021917,3]
[349477562,1737203441567,-556.35737558,0.00021917,3]
[349477564,1737203441584,-500.0,0.00021917,3]
[349477567,1737203441595,-500.0,0.00021917,3]
[349477569,1737203441605,-500.0,0.00021917,3]
[349477571,1737203441615,-593.39050278,0.00021917,3]
[349477573,1737203441625,-500.0,0.00021917,3]
[349477575,1737203441635,-500.0,0.00021917,3]
[349477577,1737203441645,-498.10414478,0.00021917,3]
[349477579,1737203441654,-500.0,0.00021917,3]
[349477581,1737203441664,-500.0,0.00021917,3]
[349477583,1737203441673,-500.0,0.00021917,3]
[349477585,1737203441683,-500.0,0.00021917,3]
[349477587,1737203441693,-500.0,0.00021917,3]
[349477589,1737203441703,-500.0,0.00021917,3]
[349477591,1737203441712,-500.0,0.00021917,2]
[349477593,1737203441722,-500.0,0.00021917,3]
[349477595,1737203441731,-500.0,0.00021917,3]
[349477597,1737203441740,-500.0,0.00021917,3]
[349477599,1737203441750,-500.0,0.00021917,3]
[349477601,1737203441759,-410.29659809,0.00021917,3]
[349477603,1737203441769,-500.0,0.00021917,3]
[349477605,1737203441779,-500.0,0.00021917,3]
[349477607,1737203441789,-500.0,0.00021917,3]
[349477609,1737203441799,-500.0,0.00021917,3]
[349477611,1737203441809,-500.0,0.00021917,3]
[349477630,1737203441970,-500.0,0.00021917,3]
[349477632,1737203441979,-500.0,0.00021917,3]
[349477634,1737203441989,-514.05561348,0.00021917,3]
[349477636,1737203441998,-500.0,0.00021917,3]
[349477638,1737203442008,-500.0,0.00021917,3]
[349477640,1737203442017,-500.0,0.00021917,3]
[349477642,1737203442026,-500.0,0.00021917,3]
[349477644,1737203442036,-500.0,0.00021917,3]
[349477646,1737203442045,-500.0,0.00021917,3]
[349477648,1737203442055,-500.0,0.00021917,3]
[349477650,1737203442064,-500.0,0.00021917,3]
[349477652,1737203442074,-500.0,0.00021917,3]
[349477654,1737203442083,-500.53221829,0.00021917,3]
[349477656,1737203442092,-500.0,0.00021917,3]
[349477658,1737203442103,-500.0,0.00021917,3]
[349477660,1737203442112,-500.0,0.00021917,3]
[349477662,1737203442122,-500.0,0.00021917,3]
[349477664,1737203442131,-500.0,0.00021917,3]
[349477666,1737203442140,-500.0,0.00021917,3]
[349477668,1737203442150,-510.78865784,0.00021917,3]
[349477670,1737203442159,-500.0,0.00021917,3]
[349477672,1737203442169,-500.0,0.00021917,3]
[349477674,1737203442178,-516.71877764,0.00021917,3]
[349477676,1737203442188,-500.0,0.00021917,3]
[349477678,1737203442197,-500.0,0.00021917,3]
[349477680,1737203442207,-500.0,0.00021917,3]
[349477682,1737203442216,-502.25903099,0.00021917,3]
[349477684,1737203442226,-500.0,0.00021917,3]
[349477686,1737203442235,-500.0,0.00021917,3]
[349477688,1737203442244,-500.0,0.00021917,3]
[349477690,1737203442255,-500.0,0.00021917,3]
[349477692,1737203442264,-500.0,0.00021917,3]
[349477694,1737203442274,-500.0,0.00021917,3]
[349477696,1737203442283,-500.0,0.00021917,3]
[349477698,1737203442293,-500.0,0.00021917,3]
[349477700,1737203442303,-500.0,0.00021917,3]
[349477702,1737203442312,-500.0,0.00021917,3]
[349477704,1737203442322,-500.0,0.00021917,3]
[349477706,1737203442331,-500.0,0.00021917,3]
[349477708,1737203442340,-500.0,0.00021917,3]
[349477710,1737203442351,-500.0,0.00021917,3]
[349477712,1737203442360,-500.0,0.00021917,3]
[349477715,1737203442370,-500.0,0.00021917,3]
[349477717,1737203442383,-2827.76,0.00021917,3]
[349477719,1737203442392,-500.0,0.00021917,3]
[349477721,1737203442402,-451.95790595,0.00021917,3]
[349477723,1737203442413,-500.0,0.00021917,3]
[349477725,1737203442423,-2135.98,0.00021917,3]
[349477727,1737203442432,-1000.0,0.00021917,3]
[349477729,1737203442442,-500.0,0.00021917,3]
[349477731,1737203442451,-500.0,0.00021917,3]
[349477733,1737203442461,-500.0,0.00021917,3]
[349477735,1737203442471,-500.0,0.00021917,3]
[349477737,1737203442480,-500.0,0.00021917,3]
[349477739,1737203442490,-500.0,0.00021917,3]
[349477741,1737203442499,-500.0,0.00021917,3]
[349477743,1737203442509,-500.0,0.00021917,3]
[349477745,1737203442518,-500.0,0.00021917,3]
[349477747,1737203442527,-505.20994744,0.00021917,3]
[349477749,1737203442536,-500.0,0.00021917,3]
[349477751,1737203442545,-500.0,0.00021917,3]
[349477753,1737203442554,-500.0,0.00021917,3]
[349477755,1737203442564,-500.0,0.00021917,3]
[349477757,1737203442574,-500.0,0.00021917,3]
[349477759,1737203442583,-500.0,0.00021917,3]
[349477761,1737203442593,-500.0,0.00021917,3]
[349477763,1737203442604,-363.93440132,0.00021917,3]
[349477782,1737203442714,-136.06559868,0.00021917,3]
[349477785,1737203442723,-500.0,0.00021917,3]
[349477788,1737203442732,-500.0,0.00021917,3]
[349477791,1737203442742,-500.0,0.00021917,3]
[349477794,1737203442751,-516.47627745,0.00021917,3]
[349477796,1737203442760,-535.66,0.00021917,3]
[349477798,1737203442770,-500.0,0.00021917,3]
[349477800,1737203442779,-500.0,0.00021917,3]
[349477802,1737203442788,-506.49772625,0.00021917,3]
[349477804,1737203442798,-500.0,0.00021917,3]
[349477806,1737203442807,-500.0,0.00021917,3]
[349477808,1737203442816,-500.0,0.00021917,3]
[349477810,1737203442826,-500.0,0.00021917,3]
[349477812,1737203442836,-500.0,0.00021917,3]
[349477814,1737203442846,-500.0,0.00021917,3]
[349477816,1737203442855,-500.0,0.00021917,3]
[349477818,1737203442865,-500.0,0.00021917,3]
[349477820,1737203442875,-501.54170248,0.00021917,3]
[349477822,1737203442888,-500.0,0.00021917,3]
[349477824,1737203442897,-340.21435294,0.00021917,3]
[349477826,1737203442906,-500.0,0.00021917,3]
[349477828,1737203442916,-500.0,0.00021917,3]
[349477830,1737203442926,-500.0,0.00021917,3]
[349477832,1737203442936,-500.0,0.00021917,3]
[349477834,1737203442945,-513.35955331,0.00021917,3]
[349477836,1737203442955,-500.0,0.00021917,3]
[349477838,1737203442964,-500.0,0.00021917,3]
[349477840,1737203442974,-500.0,0.00021917,3]
[349477842,1737203442983,-500.0,0.00021917,3]
[349477844,1737203442992,-508.58556569,0.00021917,3]
[349477846,1737203443001,-500.0,0.00021917,3]
[349477848,1737203443010,-500.0,0.00021917,3]
[349477850,1737203443020,-500.0,0.00021917,3]
[349477852,1737203443030,-500.0,0.00021917,3]
[349477854,1737203443039,-500.0,0.00021917,3]
[349477856,1737203443048,-501.57102935,0.00021917,3]
[349477858,1737203443058,-500.0,0.00021917,3]
[349477860,1737203443067,-500.0,0.00021917,3]
[349477862,1737203443076,-500.0,0.00021917,3]
[349477864,1737203443085,-500.0,0.00021917,3]
[349477866,1737203443096,-519.66142301,0.00021917,3]
[349477868,1737203443105,-599.39,0.00021917,3]
[349477870,1737203443114,-500.0,0.00021917,3]
[349477872,1737203443124,-500.0,0.00021917,3]
[349477874,1737203443133,-500.0,0.00021917,3]
[349477876,1737203443143,-11128.60573218,0.00021917,3]
[349477883,1737203443199,-870.65426782,0.00021917,3]
[349477885,1737203443208,-500.0,0.00021917,3]
[349477887,1737203443218,-500.0,0.00021917,3]
[349477889,1737203443227,-500.0,0.00021917,3]
[349477891,1737203443236,-500.0,0.00021917,3]
[349477893,1737203443245,-500.0,0.00021917,3]
[349477895,1737203443255,-500.0,0.00021917,3]
[349477897,1737203443264,-500.0,0.00021917,3]
[349477899,1737203443273,-500.0,0.00021917,3]
[349477901,1737203443283,-500.0,0.00021917,3]
[349477903,1737203443292,-500.0,0.00021917,3]
[349477905,1737203443302,-232.68,0.00021917,3]
[349477907,1737203443311,-500.0,0.00021917,3]
[349477909,1737203443321,-500.0,0.00021917,3]
[349477911,1737203443330,-500.0,0.00021917,3]
[349477913,1737203443339,-500.0,0.00021917,3]
[349477915,1737203443351,-500.0,0.00021917,3]
[349477917,1737203443360,-500.0,0.00021917,3]
[349477919,1737203443369,-500.0,0.00021917,3]
[349477921,1737203443379,-500.0,0.00021917,3]
[349477923,1737203443388,-500.0,0.00021917,3]
[349477925,1737203443397,-500.0,0.00021917,3]
[349477927,1737203443407,-522.65107004,0.00021917,3]
[349477929,1737203443415,-500.0,0.00021917,3]
[349477931,1737203443425,-500.0,0.00021917,3]
[349477932,1737203443435,-500.0,0.00021917,3]